[Event "Titled Tuesday Blitz June 15 2021"]
[White "Vovk, Orest"]
[Black "Krivonosov, Oleg"]
[WhiteFideId "14113490"]
[BlackFideId "11600349"]
[WhiteElo "2203"]
[BlackElo "2469"]
[Result "0-1"]
[Round "03"]
[TimeControl "180+1"]
[Date "2021.06.15"]
[WhiteClock "0:00:02"]
[BlackClock "0:01:12"]

1. h3 {[%clk 0:03:00]}  d5 {[%clk 0:02:59]} 2. e4 {[%clk 0:03:01]}  dxe4 {[%clk 0:02:58]} 3. Nc3 {[%clk 0:03:01]}  Nf6 {[%clk 0:02:57]} 4. Qe2 {[%clk 0:03:01]}  Nc6 {[%clk 0:02:51]} 5. Nxe4 {[%clk 0:03:00]}  Nxe4 {[%clk 0:02:51]} 6. Qxe4 {[%clk 0:03:00]}  g6 {[%clk 0:02:51]} 7. Nf3 {[%clk 0:02:55]}  Bg7 {[%clk 0:02:50]} 8. Bb5 {[%clk 0:02:52]}  O-O {[%clk 0:02:47]} 9. Bxc6 {[%clk 0:02:48]}  Bf5 {[%clk 0:02:46]} 10. Qd5 {[%clk 0:02:31]}  bxc6 {[%clk 0:02:44]} 11. Qxd8 {[%clk 0:02:31]}  Rfxd8 {[%clk 0:02:42]} 12. d3 {[%clk 0:02:29]}  c5 {[%clk 0:02:37]} 13. O-O {[%clk 0:02:21]}  c4 {[%clk 0:02:37]} 14. dxc4 {[%clk 0:02:13]}  Bxc2 {[%clk 0:02:37]} 15. Re1 {[%clk 0:02:03]}  e6 {[%clk 0:02:30]} 16. Bg5 {[%clk 0:01:55]}  Bxb2 {[%clk 0:02:18]} 17. Bxd8 {[%clk 0:01:51]}  Rxd8 {[%clk 0:02:18]} 18. Rab1 {[%clk 0:01:26]}  Bxb1 {[%clk 0:02:14]} 19. Rxb1 {[%clk 0:01:27]}  Ba3 {[%clk 0:02:14]} 20. Ne5 {[%clk 0:00:59]}  Bc5 {[%clk 0:02:06]} 21. Nf3 {[%clk 0:00:27]}  Bb6 {[%clk 0:02:03]} 22. Kf1 {[%clk 0:00:20]}  Rd3 {[%clk 0:02:01]} 23. Rb3 {[%clk 0:00:11]}  Rd1+ {[%clk 0:01:54]} 24. Ke2 {[%clk 0:00:11]}  Rc1 {[%clk 0:01:52]} 25. Ne5 {[%clk 0:00:08]}  Rc2+ {[%clk 0:01:46]} 26. Kd3 {[%clk 0:00:08]}  Rxa2 {[%clk 0:01:45]} 27. c5 {[%clk 0:00:06]}  Bxc5 {[%clk 0:01:42]} 28. Rb8+ {[%clk 0:00:06]}  Kg7 {[%clk 0:01:42]} 29. Rd8 {[%clk 0:00:06]}  Bd6 {[%clk 0:01:41]} 30. Ng4 {[%clk 0:00:04]}  h5 {[%clk 0:01:38]} 31. Ne3 {[%clk 0:00:04]}  Rxf2 {[%clk 0:01:38]} 32. g4 {[%clk 0:00:05]}  hxg4 {[%clk 0:01:36]} 33. hxg4 {[%clk 0:00:05]}  g5 {[%clk 0:01:37]} 34. Nc4 {[%clk 0:00:05]}  Rf4 {[%clk 0:01:34]} 35. Na5 {[%clk 0:00:04]}  Rxg4 {[%clk 0:01:32]} 36. Nc6 {[%clk 0:00:04]}  a6 {[%clk 0:01:29]} 37. Rd7 {[%clk 0:00:04]}  Rf4 {[%clk 0:01:25]} 38. Nd8 {[%clk 0:00:04]}  Kg6 {[%clk 0:01:25]} 39. Nb7 {[%clk 0:00:04]}  g4 {[%clk 0:01:22]} 40. Ke3 {[%clk 0:00:05]}  Rf5 {[%clk 0:01:21]} 41. Rd8 {[%clk 0:00:04]}  Kg7 {[%clk 0:01:20]} 42. Rc8 {[%clk 0:00:02]}  g3 {[%clk 0:01:18]} 43. Nxd6 {[%clk 0:00:01]}  cxd6 {[%clk 0:01:17]} 44. Rc4 {[%clk 0:00:02]}  Rg5 {[%clk 0:01:15]} 45. Rc1 {[%clk 0:00:01]}  g2 {[%clk 0:01:15]} 46. Rg1 {[%clk 0:00:02]}  f5 {[%clk 0:01:14]} 47. Rxg2 {[%clk 0:00:02]}  Rxg2 {[%clk 0:01:12]} 0-1


[Site "https://www.chess.com"]

[Event "Titled Tuesday Blitz June 15 2021"]
[White "Weetik, Vjacheslav"]
[Black "Navalgund, Niranjan"]
[WhiteFideId "4153472"]
[BlackFideId "5030854"]
[WhiteElo "2469"]
[BlackElo "2290"]
[Result "1-0"]
[Round "03"]
[TimeControl "180+1"]
[Date "2021.06.15"]
[WhiteClock "0:01:21"]
[BlackClock "0:01:20"]

1. e4 {[%clk 0:03:00]}  e5 {[%clk 0:02:59]} 2. Nf3 {[%clk 0:03:00]}  Nc6 {[%clk 0:02:59]} 3. Nc3 {[%clk 0:03:00]}  Nf6 {[%clk 0:02:59]} 4. Bb5 {[%clk 0:03:00]}  Bb4 {[%clk 0:02:57]} 5. O-O {[%clk 0:03:00]}  O-O {[%clk 0:02:57]} 6. d3 {[%clk 0:03:00]}  d6 {[%clk 0:02:57]} 7. Ne2 {[%clk 0:03:00]}  Ne7 {[%clk 0:02:57]} 8. c3 {[%clk 0:03:00]}  Ba5 {[%clk 0:02:56]} 9. Ng3 {[%clk 0:03:01]}  Ng6 {[%clk 0:02:56]} 10. d4 {[%clk 0:02:56]}  Bb6 {[%clk 0:02:55]} 11. h3 {[%clk 0:02:55]}  Bd7 {[%clk 0:02:40]} 12. Bd3 {[%clk 0:02:39]}  Re8 {[%clk 0:02:36]} 13. Re1 {[%clk 0:02:39]}  Bc6 {[%clk 0:02:09]} 14. Be3 {[%clk 0:02:27]}  d5 {[%clk 0:01:57]} 15. dxe5 {[%clk 0:02:17]}  Nxe4 {[%clk 0:01:57]} 16. Bxb6 {[%clk 0:02:10]}  axb6 {[%clk 0:01:42]} 17. Nxe4 {[%clk 0:02:04]}  dxe4 {[%clk 0:01:43]} 18. Bxe4 {[%clk 0:02:04]}  Qxd1 {[%clk 0:01:40]} 19. Raxd1 {[%clk 0:02:03]}  Rxa2 {[%clk 0:01:40]} 20. Bxc6 {[%clk 0:01:55]}  bxc6 {[%clk 0:01:40]} 21. Rd7 {[%clk 0:01:54]}  Rxb2 {[%clk 0:01:37]} 22. Rxc7 {[%clk 0:01:54]}  c5 {[%clk 0:01:37]} 23. Ng5 {[%clk 0:01:36]}  Nxe5 {[%clk 0:01:30]} 24. Rxe5 {[%clk 0:01:34]}  Rf8 {[%clk 0:01:27]} 25. Ree7 {[%clk 0:01:31]}  h6 {[%clk 0:01:22]} 26. Nxf7 {[%clk 0:01:30]}  Kh7 {[%clk 0:01:20]} 27. f3 {[%clk 0:01:21]} 1-0


[Site "https://www.chess.com"]

[Event "Titled Tuesday Blitz June 15 2021"]
[White "Willychess95"]
[Black "Urazayev, Arystanbek"]
[BlackFideId "13709810"]
[WhiteElo "2573"]
[BlackElo "2321"]
[Result "0-1"]
[Round "03"]
[TimeControl "180+1"]
[Date "2021.06.15"]
[WhiteClock "0:00:03"]
[BlackClock "0:00:06"]

1. e4 {[%clk 0:03:00]}  c5 {[%clk 0:03:00]} 2. Nf3 {[%clk 0:02:59]}  e6 {[%clk 0:03:01]} 3. d4 {[%clk 0:02:57]}  cxd4 {[%clk 0:03:01]} 4. Nxd4 {[%clk 0:02:57]}  Nf6 {[%clk 0:03:02]} 5. Nc3 {[%clk 0:02:57]}  Nc6 {[%clk 0:03:03]} 6. Ndb5 {[%clk 0:02:56]}  Bc5 {[%clk 0:03:03]} 7. Be2 {[%clk 0:02:46]}  d6 {[%clk 0:03:00]} 8. Bf4 {[%clk 0:02:39]}  e5 {[%clk 0:02:40]} 9. Be3 {[%clk 0:02:18]}  Bxe3 {[%clk 0:02:27]} 10. fxe3 {[%clk 0:02:19]}  O-O {[%clk 0:02:16]} 11. Qd2 {[%clk 0:02:02]}  Be6 {[%clk 0:02:12]} 12. O-O {[%clk 0:01:52]}  a6 {[%clk 0:01:59]} 13. Nxd6 {[%clk 0:01:48]}  b5 {[%clk 0:01:59]} 14. a3 {[%clk 0:01:39]}  Qe7 {[%clk 0:01:34]} 15. Nf5 {[%clk 0:01:31]}  Qc5 {[%clk 0:01:34]} 16. Bd3 {[%clk 0:01:18]}  Rfd8 {[%clk 0:01:23]} 17. Qe2 {[%clk 0:01:00]}  b4 {[%clk 0:01:03]} 18. axb4 {[%clk 0:00:58]}  Nxb4 {[%clk 0:01:04]} 19. Rad1 {[%clk 0:00:49]}  a5 {[%clk 0:01:02]} 20. Kh1 {[%clk 0:00:43]}  a4 {[%clk 0:00:51]} 21. Qf3 {[%clk 0:00:42]}  Bxf5 {[%clk 0:00:51]} 22. exf5 {[%clk 0:00:40]}  a3 {[%clk 0:00:52]} 23. Ne4 {[%clk 0:00:39]}  Nxe4 {[%clk 0:00:52]} 24. Bxe4 {[%clk 0:00:37]}  Rxd1 {[%clk 0:00:27]} 25. Qxd1 {[%clk 0:00:31]}  Ra7 {[%clk 0:00:18]} 26. bxa3 {[%clk 0:00:26]}  Rxa3 {[%clk 0:00:19]} 27. f6 {[%clk 0:00:20]}  gxf6 {[%clk 0:00:15]} 28. Qg4+ {[%clk 0:00:18]}  Kf8 {[%clk 0:00:15]} 29. Qf5 {[%clk 0:00:17]}  Ra6 {[%clk 0:00:11]} 30. Qxh7 {[%clk 0:00:16]}  Qxe3 {[%clk 0:00:11]} 31. Bf5 {[%clk 0:00:06]}  Nd5 {[%clk 0:00:10]} 32. Rb1 {[%clk 0:00:05]}  Rb6 {[%clk 0:00:10]} 33. Ra1 {[%clk 0:00:05]}  Ra6 {[%clk 0:00:09]} 34. Rb1 {[%clk 0:00:05]}  Qb6 {[%clk 0:00:09]} 35. Rd1 {[%clk 0:00:05]}  Qd4 {[%clk 0:00:07]} 36. Qh5 {[%clk 0:00:03]}  Ra1 {[%clk 0:00:06]} 0-1


[Site "https://www.chess.com"]

[Event "Titled Tuesday Blitz June 15 2021"]
[White "Yanchenko, Roman"]
[Black "Spata, German"]
[WhiteFideId "4137329"]
[BlackFideId "113026"]
[WhiteElo "2514"]
[BlackElo "2238"]
[Result "1-0"]
[Round "03"]
[TimeControl "180+1"]
[Date "2021.06.15"]
[WhiteClock "0:01:44"]
[BlackClock "0:00:15"]

1. d4 {[%clk 0:03:00]}  e6 {[%clk 0:02:51]} 2. c4 {[%clk 0:03:00]}  Nf6 {[%clk 0:02:48]} 3. Nf3 {[%clk 0:03:00]}  b6 {[%clk 0:02:44]} 4. Nc3 {[%clk 0:03:00]}  Bb7 {[%clk 0:02:42]} 5. Bf4 {[%clk 0:03:00]}  Bb4 {[%clk 0:02:31]} 6. Qb3 {[%clk 0:02:59]}  Bxc3+ {[%clk 0:02:20]} 7. Qxc3 {[%clk 0:03:00]}  Ne4 {[%clk 0:02:20]} 8. Qc2 {[%clk 0:03:00]}  O-O {[%clk 0:02:19]} 9. e3 {[%clk 0:03:00]}  d6 {[%clk 0:02:18]} 10. Bd3 {[%clk 0:03:00]}  f5 {[%clk 0:02:18]} 11. O-O {[%clk 0:03:00]}  Nd7 {[%clk 0:02:18]} 12. Rfd1 {[%clk 0:02:57]}  Qe7 {[%clk 0:02:15]} 13. Rac1 {[%clk 0:02:48]}  e5 {[%clk 0:02:10]} 14. dxe5 {[%clk 0:02:47]}  dxe5 {[%clk 0:02:06]} 15. Bg3 {[%clk 0:02:47]}  Nxg3 {[%clk 0:02:04]} 16. hxg3 {[%clk 0:02:47]}  e4 {[%clk 0:02:04]} 17. Be2 {[%clk 0:02:42]}  exf3 {[%clk 0:02:04]} 18. Bxf3 {[%clk 0:02:43]}  Bxf3 {[%clk 0:02:03]} 19. gxf3 {[%clk 0:02:44]}  Ne5 {[%clk 0:01:59]} 20. f4 {[%clk 0:02:44]}  Ng4 {[%clk 0:01:56]} 21. c5 {[%clk 0:02:42]}  g6 {[%clk 0:01:42]} 22. Qb3+ {[%clk 0:02:17]}  Qf7 {[%clk 0:01:37]} 23. Qa4 {[%clk 0:02:10]}  Nf6 {[%clk 0:01:19]} 24. b4 {[%clk 0:02:02]}  bxc5 {[%clk 0:01:17]} 25. Rxc5 {[%clk 0:02:01]}  a6 {[%clk 0:01:10]} 26. Rdc1 {[%clk 0:01:59]}  Ra7 {[%clk 0:00:53]} 27. Qa5 {[%clk 0:01:58]}  Rc8 {[%clk 0:00:31]} 28. b5 {[%clk 0:01:58]}  Ne4 {[%clk 0:00:31]} 29. Rc6 {[%clk 0:01:52]}  Raa8 {[%clk 0:00:24]} 30. b6 {[%clk 0:01:51]}  Rab8 {[%clk 0:00:17]} 31. Qxa6 {[%clk 0:01:44]}  Ra8 {[%clk 0:00:15]} 32. b7 {[%clk 0:01:44]} 1-0


[Site "https://www.chess.com"]

[Event "Titled Tuesday Blitz June 15 2021"]
[White "Araujo Sanchez, Josue"]
[Black "Jones, Gawain C B"]
[WhiteFideId "6416896"]
[BlackFideId "409561"]
[WhiteElo "2669"]
[BlackElo "2868"]
[Result "0-1"]
[Round "04"]
[TimeControl "180+1"]
[Date "2021.06.15"]
[WhiteClock "0:00:19"]
[BlackClock "0:00:52"]

1. b3 {[%clk 0:02:59]}  e5 {[%clk 0:02:59]} 2. Bb2 {[%clk 0:02:59]}  d6 {[%clk 0:02:59]} 3. e3 {[%clk 0:03:00]}  g6 {[%clk 0:02:59]} 4. c4 {[%clk 0:03:00]}  Bg7 {[%clk 0:03:00]} 5. Nf3 {[%clk 0:03:01]}  Nf6 {[%clk 0:02:59]} 6. d4 {[%clk 0:03:00]}  exd4 {[%clk 0:02:58]} 7. Nxd4 {[%clk 0:03:01]}  O-O {[%clk 0:02:58]} 8. Be2 {[%clk 0:03:01]}  d5 {[%clk 0:02:55]} 9. cxd5 {[%clk 0:02:53]}  Nxd5 {[%clk 0:02:54]} 10. Qc1 {[%clk 0:02:52]}  b6 {[%clk 0:02:45]} 11. O-O {[%clk 0:02:40]}  Bb7 {[%clk 0:02:44]} 12. Rd1 {[%clk 0:02:39]}  Qf6 {[%clk 0:02:35]} 13. Rd2 {[%clk 0:02:32]}  Qe7 {[%clk 0:02:33]} 14. Nc3 {[%clk 0:02:21]}  Nxe3 {[%clk 0:02:29]} 15. fxe3 {[%clk 0:01:51]}  Qxe3+ {[%clk 0:02:28]} 16. Kh1 {[%clk 0:01:52]}  Bxd4 {[%clk 0:02:28]} 17. Qc2 {[%clk 0:01:39]}  Nc6 {[%clk 0:01:55]} 18. Nd5 {[%clk 0:01:32]}  Qe5 {[%clk 0:01:52]} 19. Bf3 {[%clk 0:00:56]}  Bxb2 {[%clk 0:01:49]} 20. Qxb2 {[%clk 0:00:56]}  Qxb2 {[%clk 0:01:48]} 21. Rxb2 {[%clk 0:00:57]}  Kg7 {[%clk 0:01:35]} 22. Nxc7 {[%clk 0:00:55]}  Rad8 {[%clk 0:01:31]} 23. Nb5 {[%clk 0:00:50]}  a6 {[%clk 0:01:28]} 24. Nc3 {[%clk 0:00:50]}  Rd3 {[%clk 0:01:28]} 25. Nd5 {[%clk 0:00:46]}  Ne5 {[%clk 0:01:18]} 26. Nb4 {[%clk 0:00:39]}  Bxf3 {[%clk 0:01:15]} 27. gxf3 {[%clk 0:00:36]}  Rxf3 {[%clk 0:01:15]} 28. Nxa6 {[%clk 0:00:36]}  Rd8 {[%clk 0:01:06]} 29. a4 {[%clk 0:00:34]}  Nd3 {[%clk 0:01:03]} 30. Rc2 {[%clk 0:00:30]}  Nf4 {[%clk 0:00:59]} 31. b4 {[%clk 0:00:28]}  Rfd3 {[%clk 0:00:59]} 32. Kg1 {[%clk 0:00:26]}  R8d5 {[%clk 0:00:54]} 33. a5 {[%clk 0:00:22]}  Rg5+ {[%clk 0:00:53]} 34. Kh1 {[%clk 0:00:19]}  bxa5 {[%clk 0:00:53]} 35. bxa5 {[%clk 0:00:19]}  Rxa5 {[%clk 0:00:52]} 0-1


[Site "https://www.chess.com"]

[Event "Titled Tuesday Blitz June 15 2021"]
[White "Arias, Juan Cruz"]
[Black "Zarnicki, Pablo"]
[WhiteFideId "118540"]
[BlackFideId "100137"]
[WhiteElo "2083"]
[BlackElo "2467"]
[Result "1-0"]
[Round "04"]
[TimeControl "180+1"]
[Date "2021.06.15"]
[WhiteClock "0:00:07"]
[BlackClock "0:00:16"]

1. e4 {[%clk 0:03:00]}  c5 {[%clk 0:02:55]} 2. Nc3 {[%clk 0:03:00]}  e6 {[%clk 0:02:52]} 3. g3 {[%clk 0:03:00]}  d5 {[%clk 0:02:52]} 4. exd5 {[%clk 0:03:00]}  exd5 {[%clk 0:02:52]} 5. d3 {[%clk 0:03:00]}  Nc6 {[%clk 0:02:48]} 6. Bg2 {[%clk 0:03:00]}  Nf6 {[%clk 0:02:46]} 7. Nge2 {[%clk 0:03:01]}  d4 {[%clk 0:02:44]} 8. Ne4 {[%clk 0:03:01]}  Nxe4 {[%clk 0:02:44]} 9. dxe4 {[%clk 0:03:02]}  Be7 {[%clk 0:02:43]} 10. O-O {[%clk 0:03:02]}  O-O {[%clk 0:02:44]} 11. Nf4 {[%clk 0:03:02]}  Re8 {[%clk 0:02:31]} 12. Nd5 {[%clk 0:03:01]}  Bf8 {[%clk 0:02:31]} 13. c4 {[%clk 0:03:00]}  dxc3 {[%clk 0:02:27]} 14. bxc3 {[%clk 0:03:01]}  Be6 {[%clk 0:02:26]} 15. Rb1 {[%clk 0:02:53]}  b6 {[%clk 0:02:24]} 16. Bf4 {[%clk 0:02:40]}  Rc8 {[%clk 0:02:21]} 17. Qc2 {[%clk 0:02:33]}  Bxd5 {[%clk 0:02:19]} 18. exd5 {[%clk 0:02:33]}  Ne5 {[%clk 0:02:19]} 19. Rfe1 {[%clk 0:02:31]}  Bd6 {[%clk 0:02:19]} 20. Re4 {[%clk 0:02:27]}  Rc7 {[%clk 0:02:15]} 21. Rbe1 {[%clk 0:02:26]}  Rce7 {[%clk 0:02:15]} 22. Bg5 {[%clk 0:02:21]}  f6 {[%clk 0:02:15]} 23. Bc1 {[%clk 0:02:05]}  f5 {[%clk 0:02:13]} 24. R4e2 {[%clk 0:02:03]}  h6 {[%clk 0:02:13]} 25. Qxf5 {[%clk 0:02:02]}  Nf7 {[%clk 0:02:07]} 26. Re6 {[%clk 0:01:57]}  Qd7 {[%clk 0:01:59]} 27. Rxe7 {[%clk 0:01:25]}  Rxe7 {[%clk 0:01:58]} 28. Qxd7 {[%clk 0:01:25]}  Rxd7 {[%clk 0:01:59]} 29. f4 {[%clk 0:01:19]}  Re7 {[%clk 0:01:57]} 30. Rxe7 {[%clk 0:01:18]}  Bxe7 {[%clk 0:01:57]} 31. Kf2 {[%clk 0:01:13]}  Bf6 {[%clk 0:01:57]} 32. c4 {[%clk 0:01:09]}  Nd6 {[%clk 0:01:57]} 33. Bf1 {[%clk 0:01:10]}  Ne4+ {[%clk 0:01:57]} 34. Ke3 {[%clk 0:01:06]}  Nc3 {[%clk 0:01:56]} 35. a3 {[%clk 0:01:02]}  Kf7 {[%clk 0:01:53]} 36. Bd3 {[%clk 0:01:01]}  Ke7 {[%clk 0:01:49]} 37. h4 {[%clk 0:01:00]}  Bd4+ {[%clk 0:01:31]} 38. Kf3 {[%clk 0:01:00]}  Kf6 {[%clk 0:01:29]} 39. g4 {[%clk 0:00:57]}  a6 {[%clk 0:01:27]} 40. g5+ {[%clk 0:00:57]}  Ke7 {[%clk 0:01:27]} 41. Bd2 {[%clk 0:00:51]}  Na4 {[%clk 0:01:23]} 42. Kg4 {[%clk 0:00:40]}  Bb2 {[%clk 0:01:20]} 43. Kf5 {[%clk 0:00:23]}  hxg5 {[%clk 0:01:20]} 44. fxg5 {[%clk 0:00:23]}  Bxa3 {[%clk 0:01:20]} 45. Bc2 {[%clk 0:00:23]}  Nb2 {[%clk 0:01:18]} 46. Kg6 {[%clk 0:00:20]}  Nxc4 {[%clk 0:01:18]} 47. Bc3 {[%clk 0:00:20]}  Ne3 {[%clk 0:01:16]} 48. Kxg7 {[%clk 0:00:18]}  Nxd5 {[%clk 0:01:13]} 49. Bf6+ {[%clk 0:00:17]}  Kd6 {[%clk 0:00:52]} 50. h5 {[%clk 0:00:17]}  Bc1 {[%clk 0:00:41]} 51. h6 {[%clk 0:00:16]}  Nxf6 {[%clk 0:00:40]} 52. gxf6 {[%clk 0:00:15]}  Ke6 {[%clk 0:00:31]} 53. Bb3+ {[%clk 0:00:13]}  Kf5 {[%clk 0:00:32]} 54. f7 {[%clk 0:00:08]}  Bb2+ {[%clk 0:00:31]} 55. Kg8 {[%clk 0:00:07]}  c4 {[%clk 0:00:29]} 56. Bxc4 {[%clk 0:00:07]}  Ba3 {[%clk 0:00:16]} 57. h7 {[%clk 0:00:07]}  b5 {[%clk 0:00:16]} 58. Bb3 {[%clk 0:00:07]} 1-0


[Site "https://www.chess.com"]

[Event "Titled Tuesday Blitz June 15 2021"]
[White "Babiy, Olga"]
[Black "Goryachkina, Aleksandra"]
[WhiteFideId "14117258"]
[BlackFideId "4147103"]
[WhiteElo "2213"]
[BlackElo "2441"]
[Result "0-1"]
[Round "04"]
[TimeControl "180+1"]
[Date "2021.06.15"]
[WhiteClock "0:00:01"]
[BlackClock "0:00:10"]

1. d4 {[%clk 0:03:00]}  Nf6 {[%clk 0:02:59]} 2. Nf3 {[%clk 0:03:00]}  d5 {[%clk 0:02:58]} 3. Bf4 {[%clk 0:03:00]}  Bf5 {[%clk 0:02:57]} 4. e3 {[%clk 0:02:59]}  e6 {[%clk 0:02:57]} 5. Ne5 {[%clk 0:02:50]}  h6 {[%clk 0:02:52]} 6. Bd3 {[%clk 0:02:44]}  Bxd3 {[%clk 0:02:47]} 7. cxd3 {[%clk 0:02:45]}  Bd6 {[%clk 0:02:46]} 8. Nd2 {[%clk 0:02:42]}  O-O {[%clk 0:02:43]} 9. Qf3 {[%clk 0:02:36]}  c5 {[%clk 0:02:32]} 10. dxc5 {[%clk 0:02:27]}  Bxc5 {[%clk 0:02:31]} 11. O-O {[%clk 0:02:18]}  Nbd7 {[%clk 0:02:29]} 12. a3 {[%clk 0:02:10]}  Rc8 {[%clk 0:02:25]} 13. Rac1 {[%clk 0:02:03]}  Nxe5 {[%clk 0:02:20]} 14. Bxe5 {[%clk 0:02:02]}  Nd7 {[%clk 0:02:20]} 15. Bc3 {[%clk 0:01:55]}  Be7 {[%clk 0:02:10]} 16. Qg4 {[%clk 0:01:48]}  Bf6 {[%clk 0:02:07]} 17. Bxf6 {[%clk 0:01:42]}  Qxf6 {[%clk 0:01:55]} 18. Qb4 {[%clk 0:01:43]}  Ne5 {[%clk 0:01:43]} 19. Qb3 {[%clk 0:01:02]}  b6 {[%clk 0:01:27]} 20. d4 {[%clk 0:00:59]}  Ng6 {[%clk 0:01:21]} 21. Qa4 {[%clk 0:00:54]}  Qe7 {[%clk 0:01:12]} 22. Qa6 {[%clk 0:00:47]}  Qd7 {[%clk 0:01:09]} 23. Nf3 {[%clk 0:00:43]}  f6 {[%clk 0:01:05]} 24. h3 {[%clk 0:00:42]}  Ne7 {[%clk 0:01:05]} 25. Rfd1 {[%clk 0:00:39]}  Rxc1 {[%clk 0:01:04]} 26. Rxc1 {[%clk 0:00:39]}  Rc8 {[%clk 0:01:04]} 27. Rxc8+ {[%clk 0:00:38]}  Nxc8 {[%clk 0:01:04]} 28. Kf1 {[%clk 0:00:35]}  Nd6 {[%clk 0:01:04]} 29. Nd2 {[%clk 0:00:34]}  Qc7 {[%clk 0:01:03]} 30. Ke2 {[%clk 0:00:32]}  Qc2 {[%clk 0:00:57]} 31. Ke1 {[%clk 0:00:08]}  Qc1+ {[%clk 0:00:55]} 32. Ke2 {[%clk 0:00:09]}  Qxb2 {[%clk 0:00:55]} 33. Ke1 {[%clk 0:00:08]}  Qc1+ {[%clk 0:00:33]} 34. Ke2 {[%clk 0:00:08]}  Qc7 {[%clk 0:00:34]} 35. f3 {[%clk 0:00:07]}  Qb7 {[%clk 0:00:29]} 36. Qa4 {[%clk 0:00:06]}  Kf7 {[%clk 0:00:27]} 37. Qb4 {[%clk 0:00:07]}  Qc7 {[%clk 0:00:26]} 38. Nb3 {[%clk 0:00:06]}  a5 {[%clk 0:00:25]} 39. Qd2 {[%clk 0:00:05]}  Nc4 {[%clk 0:00:25]} 40. Qc3 {[%clk 0:00:05]}  a4 {[%clk 0:00:23]} 41. Nc1 {[%clk 0:00:04]}  Qd6 {[%clk 0:00:21]} 42. e4 {[%clk 0:00:02]}  Qxa3 {[%clk 0:00:21]} 43. Qc2 {[%clk 0:00:02]}  Qb2 {[%clk 0:00:17]} 44. Kd3 {[%clk 0:00:02]}  Qxc2+ {[%clk 0:00:17]} 45. Kxc2 {[%clk 0:00:03]}  b5 {[%clk 0:00:17]} 46. Nd3 {[%clk 0:00:02]}  Ke7 {[%clk 0:00:17]} 47. Nb4 {[%clk 0:00:02]}  Kd6 {[%clk 0:00:17]} 48. Kc3 {[%clk 0:00:03]}  Ne3 {[%clk 0:00:17]} 49. g4 {[%clk 0:00:02]}  Nc4 {[%clk 0:00:16]} 50. Kc2 {[%clk 0:00:02]}  g5 {[%clk 0:00:14]} 51. Kc3 {[%clk 0:00:02]}  Na5 {[%clk 0:00:11]} 52. Nd3 {[%clk 0:00:02]}  Nc6 {[%clk 0:00:10]} 53. Nb4 {[%clk 0:00:02]}  Nxb4 {[%clk 0:00:10]} 54. Kxb4 {[%clk 0:00:02]}  Kc6 {[%clk 0:00:10]} 55. e5 {[%clk 0:00:01]}  fxe5 {[%clk 0:00:10]} 56. dxe5 {[%clk 0:00:01]}  d4 {[%clk 0:00:10]} 0-1


[Site "https://www.chess.com"]

[Event "Titled Tuesday Blitz June 15 2021"]
[White "Bologan, Victor"]
[Black "Berend, Elvira"]
[WhiteFideId "13900048"]
[BlackFideId "4000510"]
[WhiteElo "2511"]
[BlackElo "2340"]
[Result "1-0"]
[Round "04"]
[TimeControl "180+1"]
[Date "2021.06.15"]
[WhiteClock "0:01:02"]
[BlackClock "0:00:20"]

1. e4 {[%clk 0:02:59]}  e5 {[%clk 0:02:57]} 2. Nf3 {[%clk 0:02:58]}  Nc6 {[%clk 0:02:57]} 3. Bc4 {[%clk 0:02:58]}  Bc5 {[%clk 0:02:57]} 4. c3 {[%clk 0:02:57]}  Nf6 {[%clk 0:02:57]} 5. d3 {[%clk 0:02:57]}  h6 {[%clk 0:02:54]} 6. Nbd2 {[%clk 0:02:55]}  O-O {[%clk 0:02:53]} 7. h3 {[%clk 0:02:54]}  d5 {[%clk 0:02:53]} 8. exd5 {[%clk 0:02:53]}  Nxd5 {[%clk 0:02:54]} 9. Ne4 {[%clk 0:02:53]}  Be7 {[%clk 0:02:53]} 10. O-O {[%clk 0:02:51]}  Bf5 {[%clk 0:02:43]} 11. Re1 {[%clk 0:02:47]}  Nb6 {[%clk 0:02:33]} 12. Bb5 {[%clk 0:02:36]}  Bd6 {[%clk 0:02:31]} 13. Bxc6 {[%clk 0:02:35]}  bxc6 {[%clk 0:02:30]} 14. Ng3 {[%clk 0:02:34]}  Qf6 {[%clk 0:02:26]} 15. d4 {[%clk 0:02:33]}  exd4 {[%clk 0:02:19]} 16. Nxf5 {[%clk 0:02:32]}  Qxf5 {[%clk 0:02:16]} 17. Nxd4 {[%clk 0:02:32]}  Qd7 {[%clk 0:01:55]} 18. Qf3 {[%clk 0:02:25]}  c5 {[%clk 0:01:47]} 19. Nf5 {[%clk 0:02:24]}  Kh7 {[%clk 0:01:43]} 20. Bxh6 {[%clk 0:02:17]}  gxh6 {[%clk 0:01:17]} 21. Qh5 {[%clk 0:02:15]}  Bf4 {[%clk 0:01:13]} 22. Re7 {[%clk 0:01:53]}  Qd5 {[%clk 0:01:11]} 23. Rd1 {[%clk 0:01:43]}  Qxa2 {[%clk 0:00:56]} 24. g3 {[%clk 0:01:41]}  Nc8 {[%clk 0:00:42]} 25. gxf4 {[%clk 0:01:36]}  Rg8+ {[%clk 0:00:41]} 26. Kh2 {[%clk 0:01:32]}  Rg6 {[%clk 0:00:34]} 27. Rxc7 {[%clk 0:01:08]}  Qe6 {[%clk 0:00:20]} 28. Rdd7 {[%clk 0:01:02]} 1-0


[Site "https://www.chess.com"]